fUST/lending_fUST_20240705
["ID","MTS","AMOUNT","RATE_DAILY","PERIOD"]
[331230375,1720145458850,-508.20661416,0.00050684,120]
[331230376,1720145458862,-500.0,0.00050684,120]
[331230377,1720145458871,-500.0,0.00050684,120]
[331230378,1720145458880,-505.48369456,0.00050684,120]
[331230379,1720145458890,-351.56329721,0.00050684,120]
[331230380,1720145458899,-500.0,0.00050684,120]
[331230381,1720145458909,-500.0,0.00050684,120]
[331230382,1720145458918,-4373.65,0.00050684,120]
[331230383,1720145458927,-500.0,0.00050684,120]
[331230384,1720145458938,-1207.73,0.00050684,120]
[331230385,1720145458947,-822.6,0.00050684,120]
[331230386,1720145458957,-500.0,0.00050684,120]
[331230387,1720145458966,-500.0,0.00050684,120]
[331230388,1720145458976,-509.21423126,0.00050684,120]
[331230389,1720145458986,-710.64,0.00050684,120]
[331230390,1720145458995,-507.89061533,0.00050684,120]
[331230391,1720145459005,-582.28062882,0.00050684,120]
[331230392,1720145459015,-500.0,0.00050684,120]
[331230393,1720145459024,-500.0,0.00050684,120]
[331230394,1720145459037,-500.0,0.00050684,120]
[331230395,1720145459047,-669.06,0.00050684,120]
[331230396,1720145459057,-500.0,0.00050684,120]
[331230397,1720145459067,-500.0,0.00050684,120]
[331230398,1720145459076,-500.0,0.00050684,120]
[331230399,1720145459086,-500.0,0.00050684,120]
[331230400,1720145459095,-500.0,0.00050684,120]
[331230401,1720145459107,-269.25,0.00050684,7]
[331230402,1720145459118,-500.0,0.00050684,120]
[331230403,1720145459128,-500.0,0.00050684,120]
[331230404,1720145459139,-528.1,0.00050684,120]
[331230405,1720145459148,-567.00307919,0.00050684,120]
[331230406,1720145459158,-600.62263186,0.00050684,120]
[331230407,1720145459167,-500.0,0.00050684,120]
[331230408,1720145459177,-521.41723318,0.00050684,120]
[331230409,1720145459187,-483.25092765,0.00050684,120]
[331230410,1720145459196,-7594.49,0.00050684,120]
[331230411,1720145459206,-500.0,0.00050684,120]
[331230412,1720145459215,-500.0,0.00050684,120]
[331230413,1720145459225,-514.19293746,0.00050684,120]
[331230414,1720145459238,-500.0,0.00050684,120]
[331230415,1720145459248,-923.02,0.00050684,21]
[331230416,1720145459258,-500.0,0.00050684,120]
[331230417,1720145459268,-500.0,0.00050684,120]
[331230418,1720145459278,-508.81827311,0.00050684,120]
[331230419,1720145459288,-1182.49,0.00050684,120]
[331230420,1720145459298,-3999.24,0.00050684,120]
[331230421,1720145459308,-500.0,0.00050684,120]
[331230422,1720145459318,-500.0,0.00050684,120]
[331230423,1720145459327,-500.0,0.00050684,120]
[331230424,1720145459337,-500.0,0.00050684,120]
[331230425,1720145459347,-500.0,0.00050684,120]
[331230426,1720145459363,-500.0,0.00050684,120]
[331230427,1720145459373,-1362.98,0.00050684,120]
[331230428,1720145459383,-304.44560553,0.00050684,120]
[331230429,1720145459392,-500.0,0.00050684,120]
[331230430,1720145459402,-567.05,0.00050684,120]
[331230431,1720145459412,-500.0,0.00050684,120]
[331230432,1720145459422,-500.0,0.00050684,120]
[331230433,1720145459431,-609.9,0.00050684,120]
[331230434,1720145459441,-500.0,0.00050684,120]
[331230435,1720145459451,-3012.81,0.00050684,120]
[331230436,1720145459461,-500.0,0.00050684,120]
[331230437,1720145459472,-500.0,0.00050684,120]
[331230438,1720145459482,-2669.55,0.00050684,120]
[331230439,1720145459491,-151.0,0.00050684,14]
[331230440,1720145459501,-698.18,0.00050684,120]
[331230441,1720145459510,-208.593478,0.00050684,14]
[331230442,1720145459519,-500.0,0.00050684,120]
[331230443,1720145459529,-500.0,0.00050684,120]
[331230444,1720145459539,-1198.14,0.00050684,120]
[331230445,1720145459549,-506.55276229,0.00050684,120]
[331230446,1720145459558,-151.814379,0.00050684,14]
[331230447,1720145459568,-603.34,0.00050684,120]
[331230448,1720145459577,-151.814379,0.00050684,14]
[331230449,1720145459586,-500.0,0.00050684,120]
[331230450,1720145459595,-500.0,0.00050684,120]
[331230451,1720145459607,-151.0,0.00050684,14]
[331230452,1720145459616,-4294.35,0.00050684,120]
[331230453,1720145459625,-500.0,0.00050684,120]
[331230454,1720145459634,-138.80623077,0.00050684,14]
[331230457,1720145492252,2744.0,0.00029574,30]
[331230466,1720146339191,-1634.75488436,0.00014999,2]
[331230467,1720146339224,-812.09940453,0.00015498,2]
[331230468,1720146428103,-258.5109013,0.00015498,2]
[331230469,1720146550129,-1929.38969417,0.00015498,2]
[331230470,1720146550151,-23454.70443916,0.00015498,2]
[331230471,1720146550316,-1445.29556084,0.00015498,2]
[331230472,1720146550336,-588.68024058,0.00016145,2]
[331230473,1720146550360,-4706.42499444,0.00016245,2]
[331230474,1720146550384,-30179.5106274,0.00016254,2]
[331230475,1720146556110,-256.61752285,0.00014999,2]
[331230476,1720146556131,-27035.43649618,0.00016254,2]
[331230477,1720146556152,-42226.30858632,0.00016255,2]
[331230478,1720146556179,-1516.83621899,0.00017238,2]
[331230479,1720146556199,-166.666666,0.00017338,2]
[331230480,1720146556219,-271.196597,0.00017637,2]
[331230481,1720146556241,-166.666666,0.0001781,2]
[331230482,1720146556261,-204.84421845,0.00018,2]
[331230483,1720146556282,-166.666666,0.00018283,2]
[331230484,1720146556303,-166.666666,0.00018756,2]
[331230485,1720146556324,-269.24176242,0.00018785,2]
[331230486,1720146556345,-919.06772468,0.00018785,2]
[331230487,1720146556366,-230.44330471,0.0001879,2]
[331230488,1720146556387,-250.0,0.00019041,2]
[331230489,1720146556409,-159.941344,0.00019178,2]
[331230490,1720146556439,-166.666666,0.00019228,2]
[331230491,1720146556462,-166.666666,0.00019701,2]
[331230492,1720146556484,-446.473103,0.00021096,2]
[331230493,1720146556506,-562.5,0.00021096,2]
[331230494,1720146556529,-3000.0,0.000215,2]
[331230495,1720146556551,-3000.0,0.0002151,2]
[331230496,1720146556574,-3000.0,0.0002152,2]
[331230497,1720146556599,-3000.0,0.0002153,2]
[331230498,1720146556625,-3000.0,0.0002154,2]
[331230499,1720146556647,-4443.79423703,0.0002154,3]
[331230725,1720146635359,-159.2417,0.00020316,2]
[331230727,1720146635369,-1068.5383,0.00021095,2]
[331230748,1720146640331,-408.0,0.00021095,2]
[331230788,1720146640750,-247.81708883,0.00021095,2]
[331230790,1720146640761,-570.59223907,0.0002154,2]
[331230791,1720146640771,-1464.89089073,0.0002154,2]
[331230793,1720146640782,-225.53942994,0.0002154,2]
[331230795,1720146640792,-262.63075741,0.0002154,3]
[331230796,1720146640803,-3000.0,0.0002155,2]
[331230797,1720146640814,-3000.0,0.0002156,2]
[331230798,1720146640825,-3000.0,0.0002157,2]
[331230799,1720146640835,-3000.0,0.0002158,2]
[331230800,1720146640845,-3000.0,0.0002159,2]
[331230801,1720146640856,-3000.0,0.000216,2]
[331230802,1720146640866,-3000.0,0.0002161,2]
[331230803,1720146640876,-3000.0,0.0002162,2]
[331230804,1720146640887,-3000.0,0.0002163,2]
[331230805,1720146640897,-3000.0,0.0002164,2]
[331230806,1720146640907,-3000.0,0.0002165,2]
[331230807,1720146640917,-3000.0,0.0002166,2]
[331230808,1720146640927,-3000.0,0.0002167,2]
[331230809,1720146640940,-3000.0,0.0002168,2]
[331230810,1720146640951,-3000.0,0.0002169,2]
[331230811,1720146640961,-9412.84998888,0.000217,3]
[331230812,1720146640972,-3000.0,0.000217,2]
[331230813,1720146640989,-3000.0,0.0002171,2]
[331230814,1720146640999,-3000.0,0.0002172,2]
[331230815,1720146641010,-3000.0,0.0002173,2]
[331230816,1720146641020,-3000.0,0.0002174,2]
[331230817,1720146641031,-3000.0,0.0002175,2]
[331230818,1720146641042,-3000.0,0.0002176,2]
[331230819,1720146641053,-3000.0,0.0002177,2]
[331230820,1720146641064,-3000.0,0.0002178,2]
[331230821,1720146641075,-3000.0,0.0002179,2]
[331230822,1720146641086,-4706.42499444,0.0002179,3]
[331230823,1720146641097,-3000.0,0.000218,2]
[331230824,1720146641108,-3000.0,0.0002181,2]
[331230825,1720146641119,-3000.0,0.0002182,2]
[331230826,1720146641129,-3000.0,0.0002183,2]
[331230827,1720146641139,-3000.0,0.0002184,2]
[331230828,1720146641149,-3000.0,0.0002185,2]
[331230829,1720146641160,-3000.0,0.0002186,2]
[331230830,1720146641170,-3000.0,0.0002187,2]
[331230831,1720146641180,-3000.0,0.0002188,2]
[331230832,1720146641190,-3000.0,0.0002189,2]
[331230833,1720146641201,-3000.0,0.000219,2]
[331230834,1720146641211,-3000.0,0.0002191,2]
[331230835,1720146641222,-3000.0,0.0002192,2]
[331230836,1720146641241,-3000.0,0.0002193,2]
[331230837,1720146641251,-3000.0,0.0002194,2]
[331230838,1720146641262,-3000.0,0.0002195,2]
[331230839,1720146641272,-4706.42499444,0.0002195,3]
[331230840,1720146641282,-3000.0,0.0002196,2]
[331230841,1720146641293,-3000.0,0.0002197,2]
[331230842,1720146641303,-3000.0,0.0002198,2]
[331230843,1720146641313,-3000.0,0.0002199,2]
[331230846,1720146641323,-300.0,0.00022,9]
[331230848,1720146641334,-1633.70475094,0.00022,2]
[331230849,1720146641344,-3000.0,0.00022,2]
[331230850,1720146641355,-3000.0,0.0002201,2]
[331230851,1720146641366,-3000.0,0.0002202,2]
[331230852,1720146641378,-3000.0,0.0002203,2]
[331230853,1720146641390,-3000.0,0.0002204,2]
[331230854,1720146641401,-3000.0,0.0002205,2]
[331230855,1720146641412,-3000.0,0.0002206,2]
[331230856,1720146641422,-3000.0,0.0002207,2]
[331230857,1720146641436,-5414.3101,0.0002208,2]
[331230858,1720146641446,-640.68793515,0.00022465,2]
[331230859,1720146641456,-2143.84238177,0.00022942,2]
[331230860,1720146641468,-2420.76089721,0.00022942,2]
[331230861,1720146641486,-200.0,0.00023,2]
[331230862,1720146641497,-246.41677622,0.00023002,2]
[331230863,1720146641507,-276.49684346,0.00023063,2]
[331230864,1720146641518,-246.5696381,0.00023355,2]
[331230865,1720146641528,-150.0,0.000234,2]
[331230866,1720146641538,-276.49684346,0.0002341,2]
[331230867,1720146641549,-802.90603496,0.00023489,2]
[331230868,1720146641558,-300.946553,0.000235,10]
[331230869,1720146641569,-168.7363015,0.00023562,2]
[331230870,1720146641579,-4706.42499444,0.00023579,3]
[331230871,1720146641588,-621.03439676,0.00023589,2]
[331230872,1720146641598,-266.89979921,0.00023679,2]
[331230873,1720146641608,-153.17076312,0.00023721,2]
[331230874,1720146641618,-250.0,0.00023948,2]
[331230875,1720146641630,-66860.60880275,0.00023966,2]
[331230876,1720146641640,-246.41677622,0.00024156,2]
[331230877,1720146641649,-153.17076312,0.0002432,2]
[331230878,1720146641659,-246.5696381,0.00024458,2]
[331230879,1720146641669,-350.0,0.00024496,2]
[331230880,1720146641679,-153.17076312,0.00024644,2]
[331230881,1720146641689,-380.0,0.00024658,2]
[331230882,1720146641699,-200.0,0.00024658,15]
[331230883,1720146641709,-620.05171984,0.00024768,2]
[331230884,1720146641719,-276.49684346,0.00025039,2]
[331230885,1720146641733,-450.0,0.00025044,2]
[331230886,1720146641743,-378.37321801,0.00025204,2]
[331230887,1720146641753,-246.41677622,0.00025251,2]
[331230888,1720146641763,-276.49684346,0.0002531,2]
[331230889,1720146641773,-276.49684346,0.00025348,2]
[331230890,1720146641782,-151.02721061,0.00025425,2]
[331230891,1720146641792,-4706.42499444,0.00025491,3]
[331230892,1720146641801,-52100.07365113,0.00025501,2]
[331230893,1720146641812,-321.21572919,0.00025592,2]
[331230894,1720146641821,-150.30016482,0.00025726,2]
[331230895,1720146641831,-246.5696381,0.00025782,2]
[331230896,1720146641840,-246.41677622,0.00025822,2]
[331230897,1720146641850,-22173.23120803,0.00025869,2]
[331230898,1720146641860,-879.23230837,0.00025869,2]
[331230899,1720146641870,-30000.0,0.00025869,2]
[331230900,1720146641880,-246.5696381,0.00025947,2]
[331230901,1720146641890,-620.00258599,0.00026006,2]
[331230902,1720146641900,-42226.30858632,0.00026109,2]
[331230903,1720146641910,-276.49684346,0.00026135,2]
[331230904,1720146641920,-246.5696381,0.0002629,2]
[331230905,1720146641930,-246.5696381,0.00026354,2]
[331230906,1720146641940,-9412.84998888,0.0002639,3]
[331230907,1720146641950,-88888.0,0.000264,3]
[331230908,1720146641959,-271.196597,0.00026456,2]
[331230909,1720146641969,-3000.0,0.000265,2]
[331230910,1720146641982,-3000.0,0.0002651,2]
[331230911,1720146641994,-3000.0,0.0002652,2]
[331230912,1720146642004,-3000.0,0.0002653,2]
[331230913,1720146642014,-3000.0,0.0002654,2]
[331230914,1720146642023,-3000.0,0.0002655,2]
[331230915,1720146642036,-246.5696381,0.00026552,2]
[331230916,1720146642045,-3000.0,0.0002656,2]
[331230917,1720146642055,-3000.0,0.0002657,2]
[331230918,1720146642064,-3000.0,0.0002658,2]
[331230919,1720146642074,-3000.0,0.0002659,2]
[331230920,1720146642083,-3000.0,0.000266,2]
[331230921,1720146642093,-4706.42499444,0.000266,3]
[331230922,1720146642103,-3000.0,0.0002661,2]
[331230923,1720146642112,-3000.0,0.0002662,2]
[331230924,1720146642122,-3000.0,0.0002663,2]
[331230925,1720146642133,-3000.0,0.0002664,2]
[331230926,1720146642143,-3000.0,0.0002665,2]
[331230927,1720146642153,-3000.0,0.0002666,2]
[331230928,1720146642163,-3000.0,0.0002667,2]
[331230929,1720146642174,-3000.0,0.0002668,2]
[331230930,1720146642184,-3000.0,0.0002669,2]
[331230931,1720146642194,-3000.0,0.000267,2]
[331230932,1720146642204,-3000.0,0.0002671,2]
[331230933,1720146642215,-3000.0,0.0002672,2]
[331230934,1720146642226,-3000.0,0.0002673,2]
[331230935,1720146642248,-3000.0,0.0002674,2]
[331230936,1720146642259,-3000.0,0.0002675,2]
[331230937,1720146642270,-3000.0,0.0002676,2]
[331230938,1720146642282,-4706.42499444,0.0002676,3]
[331230939,1720146642293,-3000.0,0.0002677,2]
[331230940,1720146642303,-3000.0,0.0002678,2]
[331230941,1720146642313,-3000.0,0.0002679,2]
[331230944,1720146642323,-3000.0,0.000268,2]
[331230946,1720146642333,-3000.0,0.0002681,2]
[331230947,1720146642343,-3000.0,0.0002682,2]
[331230948,1720146642352,-3000.0,0.0002683,2]
[331230949,1720146642362,-3000.0,0.0002684,2]
[331230950,1720146642372,-3000.0,0.0002685,2]
[331230951,1720146642381,-276.49684346,0.00026851,2]
[331230952,1720146642391,-266.89979921,0.00026853,2]
[331230953,1720146642401,-3000.0,0.0002686,2]
[331230954,1720146642412,-3000.0,0.0002687,2]
[331230955,1720146642421,-3000.0,0.0002688,2]
[331230956,1720146642434,-3000.0,0.0002689,2]
[331230957,1720146642447,-151.02721061,0.00026892,2]
[331230958,1720146642457,-3000.0,0.000269,2]
[331230959,1720146642467,-159.314575,0.00026977,2]
[331230960,1720146642479,-175.66791452,0.00027115,2]
[331230961,1720146642495,-160.09733992,0.00027194,2]
[331230962,1720146642505,-446.473103,0.00027195,2]
[331230963,1720146642515,-562.5,0.00027195,2]
[331230964,1720146642525,-620.0001293,0.00027307,2]
[331230965,1720146642535,-153.17076312,0.00027328,2]
[331230967,1720146642545,-346.149426,0.00027397,120]
[331230969,1720146642555,-166.77891538,0.00027573,2]
[331230970,1720146642565,-149.997358,0.00027704,2]
[331230972,1720146642576,-174.716494,0.00027704,2]
[331230975,1720146642587,-266.89979921,0.00027734,2]
[331230977,1720146642597,-150.30016482,0.00027955,2]
[331230979,1720146642608,-17247.80566422,0.00027999,2]
[331230981,1720146642620,-268.30367969,0.00028,2]
[331230983,1720146642631,-149.997358,0.00028051,2]
[331230984,1720146642641,-174.716494,0.00028051,2]
[331230987,1720146642652,-266.89979921,0.00028158,2]
[331230988,1720146642662,-246.5696381,0.00028234,2]
[331230990,1720146642672,-153.17076312,0.00028311,2]
[331230993,1720146642682,-266.89979921,0.00028322,2]
[331230994,1720146642694,-175.66791452,0.00028346,2]
[331230996,1720146642705,-4706.42499444,0.00028387,3]
[331230998,1720146642715,-149.997358,0.00028397,2]
[331231000,1720146642725,-174.716494,0.00028397,2]
[331231002,1720146642740,-266.89979921,0.00028466,2]
[331231003,1720146642749,-246.5696381,0.00028549,2]
[331231005,1720146642760,-276.49684346,0.00028709,2]
[331231007,1720146642771,-149.997358,0.00028743,2]
[331231010,1720146642783,-174.716494,0.00028743,2]
[331231011,1720146642794,-159.2983416,0.0002883,2]
[331231013,1720146642805,-10969.18309024,0.00028939,2]
[331231015,1720146642815,-246.5696381,0.00029031,2]
[331231016,1720146642825,-149.997358,0.0002909,2]
[331231017,1720146642835,-174.716494,0.0002909,2]
[331231018,1720146642846,-276.49684346,0.0002911,2]
[331231019,1720146642856,-151.02721061,0.00029344,2]
[331231020,1720146642866,-1687.0,0.0002956,30]
[331231021,1720146642876,-4172.94461587,0.00029574,2]
[331231022,1720146642886,-189.04078712,0.00029574,2]
[331231023,1720146642896,-427.95620224,0.00029574,2]
[331231024,1720146642906,-169.50434797,0.00029574,2]
[331231025,1720146642916,-387.47,0.00029589,30]
[331231026,1720146642927,-1250.0,0.00029608,30]
[331231027,1720146642937,-387.47,0.00029608,30]
[331231028,1720146642947,-150.0,0.0002961,7]
[331231029,1720146642957,-150.0,0.0002961,7]
[331231030,1720146642967,-200.0,0.0002961,7]
[331231031,1720146642977,-150.30016482,0.00029664,2]
[331231032,1720146642991,-4706.42499444,0.00029783,3]
[331231033,1720146643003,-9615.23092531,0.00029823,2]
[331231034,1720146643013,-266.89979921,0.00029841,2]
[331231035,1720146643024,-10575.75912083,0.00029903,2]
[331231036,1720146643034,-802.90603492,0.00029921,2]
[331231037,1720146643044,-4706.42499444,0.00029989,4]
[331231038,1720146643054,-351.32038796,0.0003,30]
[331231039,1720146643064,-289.0,0.0003,2]
[331231040,1720146643074,-246.41677622,0.00030052,7]
[331231041,1720146643084,-153.17076312,0.00030249,7]
[331231042,1720146643094,-246.41677622,0.00030358,7]
[331231043,1720146643104,-166.77891538,0.00030508,7]
[331231044,1720146643114,-153.17076312,0.00030553,7]
[331231045,1720146643124,-153.17076312,0.00030824,7]
[331231046,1720146643134,-246.5696381,0.00030853,7]
[331231047,1720146643143,-246.5696381,0.00031013,7]
[331231048,1720146643153,-246.5696381,0.00031029,7]
[331231049,1720146643163,-276.49684346,0.00031126,7]
[331231050,1720146643172,-266.89979921,0.00031434,7]
[331231051,1720146643182,-151.02721061,0.00031504,7]
[331231052,1720146643192,-159.2417,0.00031754,2]
[331231053,1720146643202,-266.89979921,0.00031774,7]
[331231054,1720146643212,-151.02721061,0.00031923,7]
[331231055,1720146643222,-346.149426,0.00031963,120]
[331231056,1720146643236,-266.89979921,0.00031975,7]
[331231057,1720146643246,-159.49148542,0.00032226,7]
[331231058,1720146643255,-151.02721061,0.00032584,7]
[331231059,1720146643265,-246.41677622,0.0003272,7]
[331231060,1720146643274,-266.89979921,0.00032849,7]
[331231061,1720146643284,-153.17076312,0.0003299,7]
[331231062,1720146643293,-289.0,0.00033,2]
[331231063,1720146643303,-446.473103,0.00033295,2]
[331231064,1720146643314,-562.5,0.00033295,2]
[331231065,1720146643323,-276.49684346,0.00033332,7]
[331231066,1720146643333,-159.49148542,0.00033643,7]
[331231067,1720146643342,-153.17076312,0.00033764,7]
[331231068,1720146643352,-276.49684346,0.0003377,7]
[331231069,1720146643361,-9380.78685145,0.00033842,4]
[331231070,1720146643372,-9380.78685145,0.00033842,4]
[331231071,1720146643382,-150.30016482,0.00033915,7]
[331231072,1720146643392,-266.89979921,0.0003405,7]
[331231073,1720146643402,-266.89979921,0.00034192,7]
[331231074,1720146643412,-153.17076312,0.00034287,7]
[331231075,1720146643422,-246.41677622,0.00034295,7]
[331231076,1720146643433,-246.5696381,0.00034392,7]
[331231077,1720146643448,-5331.37523403,0.00034418,7]
[331231078,1720146643458,-6076.9012323,0.00034422,5]
[331231079,1720146643468,-246.41677622,0.00034545,7]
[331231080,1720146643486,-4706.42499444,0.00034545,4]
[331231081,1720146643498,-266.89979921,0.00034552,7]
[331231082,1720146643508,-6329.73360915,0.00034562,4]
[331231083,1720146643519,-659.62373504,0.00034592,2]
[331231084,1720146643529,-4136.6527888,0.00034592,4]
[331231085,1720146643540,-276.49684346,0.00034593,7]
[331231086,1720146643550,-154.76012181,0.00034623,4]
[331231087,1720146643561,-1338.49025736,0.00034623,4]
[331231088,1720146643571,-667.26269217,0.0003463,4]
[331231089,1720146643582,-234.05455814,0.0003463,2]
[331231090,1720146643593,-279.07606943,0.00034634,4]
[331231091,1720146643603,-154.76012181,0.00034642,4]
[331231092,1720146643614,-154.76012181,0.00034642,4]
[331231093,1720146643626,-170.32678473,0.00034642,4]
[331231094,1720146643637,-154.76012181,0.00034642,4]
[331231095,1720146643649,-1556.2663267,0.00034642,4]
[331231096,1720146643660,-235.33275104,0.00034642,4]
[331231097,1720146643671,-440.9209018,0.0003465,2]
[331231098,1720146643681,-176.75354072,0.00034669,4]
[331231099,1720146643692,-154.84561839,0.0003467,4]
[331231100,1720146643703,-201.52169544,0.0003467,2]
[331231101,1720146643713,-154.84354669,0.00034672,3]
[331231102,1720146643723,-2865.4309312,0.00034672,4]
[331231103,1720146643740,-154.76012181,0.0003468,2]
[331231104,1720146643750,-154.76012181,0.00034811,4]
[331231105,1720146643760,-266.89979921,0.00034816,7]
[331231106,1720146643769,-246.41677622,0.0003483,7]
[331231107,1720146643780,-2146.27761673,0.00034899,14]
[331231108,1720146643790,-150.30016482,0.00034988,7]
[331231109,1720146643800,-2196.40771411,0.00034999,4]
[331231110,1720146643810,-3215.6061745,0.00034999,60]
[331231111,1720146643917,-655.29709415,0.00035,30]
[331231112,1720146643944,-276.49684346,0.00035212,7]
[331231113,1720146643954,-21581.98,0.00035616,3]
[331231114,1720146643964,-246.5696381,0.00035632,7]
[331231115,1720146643974,-266.89979921,0.00035708,7]
[331231116,1720146643993,-276.49684346,0.00035723,7]
[331231117,1720146644004,-246.41677622,0.00035773,7]
[331231118,1720146644014,-159.49148542,0.00035867,7]
[331231119,1720146644024,-276.49684346,0.00035973,7]
[331231120,1720146644035,-1313.31625762,0.00035999,4]
[331231121,1720146644046,-289.0,0.00036,2]
[331231122,1720146644056,-246.5696381,0.0003617,7]
[331231123,1720146644066,-159.49148542,0.00036221,7]
[331231124,1720146644076,-802.90603492,0.00036352,2]
[331231125,1720146644086,-150.30016482,0.00036392,7]
[331231126,1720146644096,-276.49684346,0.0003643,7]
[331231127,1720146644106,-246.5696381,0.00036445,7]
[331231128,1720146644116,-266.89979921,0.00036521,7]
[331231129,1720146644127,-346.149426,0.0003653,120]
[331231130,1720146644137,-246.41677622,0.0003653,7]
[331231131,1720146644147,-1484.11636857,0.00036732,4]
[331231132,1720146644156,-1260.01242543,0.00036732,4]
[331231133,1720146644167,-1091.40807892,0.00036732,21]
[331231134,1720146644176,-266.89979921,0.00036764,7]
[331231135,1720146644186,-154.83299546,0.00037,4]
[331231136,1720146644196,-153.17076312,0.00037113,7]
[331231137,1720146644206,-266.89979921,0.00037189,7]
[331231138,1720146644217,-150.30016482,0.00037215,7]
[331231139,1720146644228,-246.41677622,0.00037482,7]
[331231140,1720146644243,-246.41677622,0.000375,7]
[331231141,1720146644252,-246.5696381,0.00037507,7]
[331231142,1720146644261,-4706.42499444,0.00037797,4]
[331231145,1720146644270,-1012.8683294,0.00037807,4]
[331231149,1720146644279,-642.76758109,0.00037807,4]
[331231152,1720146644289,-246.5696381,0.00037823,7]
[331231155,1720146644299,-642.76758109,0.00037899,4]
[331231158,1720146644309,-471.27760912,0.00037999,4]
[331231161,1720146644319,-448.41042787,0.00038,120]
[331231164,1720146644330,-150.30016482,0.00038014,7]
[331231168,1720146644341,-159.49148542,0.00038068,7]
[331231171,1720146644351,-246.41677622,0.00038318,7]
[331231174,1720146644362,-276.49684346,0.0003832,7]
[331231177,1720146644373,-246.41677622,0.00038822,7]
[331231180,1720146644383,-276.49684346,0.00038962,7]
[331231183,1720146644393,-266.89979921,0.00039011,7]
[331231186,1720146644403,-256.53141225,0.00039177,2]
[331231189,1720146644414,-176.55886195,0.00039393,10]
[331231193,1720146644424,-154.76012181,0.00039393,4]
[331231196,1720146644439,-446.473103,0.00039394,2]
[331231199,1720146644451,-562.5,0.00039394,2]
[331231202,1720146644461,-246.41677622,0.00039485,7]
[331231205,1720146644471,-151.02721061,0.00039596,7]
[331231209,1720146644491,-266.89979921,0.00039673,7]
[331231213,1720146644501,-166.77891538,0.00039911,7]
[331231215,1720146644511,-276.49684346,0.00039933,7]
[331231220,1720146644523,-371.39375676,0.00039994,4]
[331231224,1720146644534,-435.0,0.00039994,2]
[331231228,1720146644544,-5700.00300949,0.00039999,4]
[331231231,1720146644553,-176.70502713,0.0004,15]
[331231234,1720146644563,-151.0,0.0004,120]
[331231237,1720146644573,-151.0,0.0004,120]
[331231240,1720146644582,-177.19408036,0.00040229,4]
[331231243,1720146644592,-643.82774266,0.00040278,4]
[331231245,1720146644602,-246.5696381,0.0004034,30]
[331231247,1720146644612,-246.5696381,0.00040344,30]
[331231248,1720146644621,-276.49684346,0.00040352,30]
[331231249,1720146644630,-150.30016482,0.0004051,30]
[331231250,1720146644640,-266.89979921,0.00040679,30]
[331231251,1720146644650,-151.0,0.00040959,120]
[331231252,1720146644659,-9115.31248333,0.00041,30]
[331231254,1720146644668,-276.49684346,0.00041027,30]
[331231255,1720146644677,-266.89979921,0.00041082,30]
[331231256,1720146644687,-346.149426,0.00041096,120]
[331231257,1720146644696,-159.49148542,0.00041341,30]
[331231258,1720146644705,-151.02721061,0.00041507,30]
[331231259,1720146644714,-266.89979921,0.00041514,30]
[331231260,1720146644724,-159.49148542,0.00041552,30]
[331231261,1720146644738,-246.5696381,0.00041749,30]
[331231262,1720146644748,-153.17076312,0.00041778,30]
[331231263,1720146644758,-151.0,0.00041781,120]
[331231264,1720146644767,-276.49684346,0.00041791,30]
[331231265,1720146644777,-246.41677622,0.00041802,30]
[331231266,1720146644787,-246.5696381,0.00041841,30]
[331231267,1720146644796,-153.17076312,0.00041885,30]
[331231268,1720146644806,-246.5696381,0.00041894,30]
[331231269,1720146644815,-151.0,0.00041918,120]
[331231270,1720146644824,-153.17076312,0.00042271,30]
[331231271,1720146644834,-246.5696381,0.00042328,30]
[331231272,1720146644843,-266.89979921,0.00042366,30]
[331231273,1720146644852,-802.90603492,0.00042784,2]
[331231274,1720146644861,-150.30016482,0.00042795,30]
[331231275,1720146644870,-151.0,0.00042877,120]